Cogmind - Beta 13 @@@ ROGUE MODE // 2024.04.08 @ 20:54:25 Player: f_ Result: Destroyed by C-35 Carver with Carbide Saw Performance ------------- Evolutions (7) 3500 Regions Visited (13) 2600 Robots Destroyed (0) 0 Value Destroyed (0) 0 Prototype IDs (15) 300 Alien Tech Used (2) 400 Bonus (5197) 5197 TOTAL SCORE: 11997 Bonus ------- Pacifist 4397 Entered DSFs 500 Met Zhirov 300 Cogmind --------- Core Integrity 0/1300 Matter 14/300 Energy 100/100 System Corruption 12% Temperature Cool (0) Movement Core (50) Location -3/Research Parts ------- > --- POWER (2) -------- (None) > --- PROPULSION (6) --- (None) > --- UTILITY (11) ----- (None) > --- WEAPON (2) ------- (None) > --- INVENTORY (5) ---- Particle Reactor Cooled Field Propulsion Drive Advanced Reaction Control System Advanced Reaction Control System Improved System Shield Peak State ------------ > --- POWER ------------ Light Deuterium Engine Micro Antimatter Reactor > --- PROPULSION ------- Improved Cesium-ion Thruster Improved Cesium-ion Thruster Field Propulsion Drive Field Propulsion Drive Impulse Thruster Array > --- UTILITY ---------- Triangulator Improved Signal Interpreter Advanced Terrain Scan Processor Advanced Transmission Jammer Advanced Reaction Control System Improved Phase Shifter Cloaking Device Experimental Focal Shield System Shield > --- WEAPON ----------- Lance > --- INVENTORY -------- Particle Reactor Cooled Field Propulsion Drive Impulse Thruster Array [Rating: 108] Favorites ----------- Power Light Deuterium Engine Engine Light Deuterium Engine Reactor Fusion Reactor Propulsion Improved Cesium-ion Thruster Treads Medium Treads Flight Unit Improved Cesium-ion Thruster Utility Improved Signal Interpreter Device Terrain Scanner Processor Improved Signal Interpreter Hackware Hacking Suite Protection Experimental Propulsion Shielding Weapon Lance Piercing Weapon Lance Build | -11 -10 -9 -8 -7 -6 -5 -5 -5 -5 -4 -4 -4 -3 ------- Run | Yrd Mat Mat Mat Fac Fac Fac Upp Upp Zhi Pro Fac DSF Res Slots Evolved 14 | . . 2 2 2 2 2 . . . . 2 . 2 Power 1 | . . . . . . . . . . . . . 1 Propulsion 4 | . . . 2 . . . . . . . 2 . . Utility 9 | . . 2 . 2 2 2 . . . . . . 1 Weapon . | . . . . . . . . . . . . . . Parts Attached 41 | . . 1 6 6 1 5 1 . 3 . 2 2 14 Power 4 | . . . . . . 1 . . 1 . . . 2 Engine 2 | . . . . . . 1 . . . . . . 1 Core . | . . . . . . . . . . . . . . Reactor 2 | . . . . . . . . . 1 . . . 1 Propulsion 17 | . . . 4 4 . 3 . . . . . 2 4 Treads 8 | . . . 4 4 . . . . . . . . . Leg . | . . . . . . . . . . . . . . Wheel . | . . . . . . . . . . . . . . Hover . | . . . . . . . . . . . . . . Flight 9 | . . . . . . 3 . . . . . 2 4 Utility 19 | . . 1 2 2 1 1 1 . 2 . 1 . 8 Device 11 | . . 1 1 . . 1 1 . . . 1 . 6 Storage . | . . . . . . . . . . . . . . Processor 4 | . . . 1 1 1 . . . . . . . 1 Hackware 3 | . . . . 1 . . . . 1 . . . 1 Protection 1 | . . . . . . . . . 1 . . . . Artifact . | . . . . . . . . . . . . . . Weapon 1 | . . . . . . . . . . . 1 . . Energy Gun . | . . . . . . . . . . . . . . Energy Cannon . | . . . . . . . . . . . . . . Ballistic Gun . | . . . . . . . . . . . . . . Ballistic Cannon . | . . . . . . . . . . . . . . Launcher . | . . . . . . . . . . . . . . Special Weapon . | . . . . . . . . . . . . . . Impact Weapon . | . . . . . . . . . . . . . . Slashing Weapon . | . . . . . . . . . . . . . . Piercing Weapon 1 | . . . . . . . . . . . 1 . . Special Melee Weapon . | . . . . . . . . . . . . . . Unidentified Prototypes 6 | . . . . . . 1 . . 3 1 . . 1 Parts Lost 19 | . . . . 1 5 . 1 . . 1 . 4 7 Power 2 | . . . . . . . . . . . . 1 1 Propulsion 8 | . . . . . 3 . . . . . . . 5 Utility 9 | . . . . 1 2 . 1 . . 1 . 3 1 Weapon . | . . . . . . . . . . . . . . Highest Loss Streak 5 | . . . . 1 5 . 1 . . 1 . 4 5 To Critical Strikes . | . . . . . . . . . . . . . . Average Slot Usage (%) 44 | . . 1 45 64 47 29 35 35 39 42 41 45 52 Engine 1 | . . . . . . 5 5 5 3 . . . 2 Reactor 1 | . . . . . . . . . 1 5 5 3 1 Treads 9 | . . . 25 29 20 . . . . . . . . Flight 10 | . . . . . . 14 17 17 17 17 15 20 19 Device 7 | . . 1 14 11 5 2 5 5 5 1 1 3 13 Processor 7 | . . . 4 14 15 5 5 5 5 5 5 5 7 Hackware 2 | . . . . 6 5 . . . 1 5 5 3 2 Naked Turns 137 | . 44 78 . . . . . . . . . . 15 Heaviest Build 26 | . . 1 2 2 1 6 7 6 14 14 18 18 26 Greatest Support 42 | 3 3 3 3 28 3 25 25 25 25 25 25 39 42 Greatest Overweight (x) . | . . . . . . . . . . . . . . Average Overweight (x) . | . . . . . . . . . . . . . . Largest Inventory Capacity 5 | 5 5 5 5 5 5 5 5 5 5 5 5 5 5 Average Capacity 5 | 5 5 5 5 5 5 5 5 5 5 5 5 5 5 Most Carried 5 | . . . . 2 3 2 1 1 3 3 3 5 5 Average Carried 1 | . . . . . 2 1 1 1 1 2 3 3 3 Final Capacity 5 | 5 5 5 5 5 5 5 5 5 5 5 5 5 5 Final Carried 5 | . . . . 2 3 1 1 1 3 3 3 3 5 Class Distribution -------------------- 44% | Sprinter 29% | Mutant 17% | Scout 7% | Infiltrator-Sprinter Dominant Class ---------------- Mutant | -10/Materials Mutant | -9/Materials Scout | -8/Materials Scout | -7/Factory Mutant | -6/Factory Mutant | -5/Factory Sprinter | -5/Upper Caves Sprinter | -5/Upper Caves Sprinter | -5/Zhirov Sprinter | -4/Proximity Caves Sprinter | -4/Factory Sprinter | -4/DSF Sprinter | -3/Research Resources | -11 -10 -9 -8 -7 -6 -5 -5 -5 -5 -4 -4 -4 -3 ----------- Run | Yrd Mat Mat Mat Fac Fac Fac Upp Upp Zhi Pro Fac DSF Res Matter Collected 214 | . . . . 168 . . 22 24 . . . . . Remotely . | . . . . . . . . . . . . . . Salvage Created . | . . . . . . . . . . . . . . Parts . | . . . . . . . . . . . . . . Haulers Intercepted . | . . . . . . . . . . . . . . Recyclers Shooed . | . . . . . . . . . . . . . . Parts Field Recycled . | . . . . . . . . . . . . . . Retrieved Matter . | . . . . . . . . . . . . . . Parts Self-Destructed . | . . . . . . . . . . . . . . Prevented . | . . . . . . . . . . . . . . Kills | -11 -10 -9 -8 -7 -6 -5 -5 -5 -5 -4 -4 -4 -3 ------- Run | Yrd Mat Mat Mat Fac Fac Fac Upp Upp Zhi Pro Fac DSF Res Combat Hostiles Destroyed . | . . . . . . . . . . . . . . Classes Destroyed . | . . . . . . . . . . . . . . Best Kill Streak . | . . . . . . . . . . . . . . Combat Bots Only . | . . . . . . . . . . . . . . Max Kills in Single Turn . | . . . . . . . . . . . . . . Gunslinging . | . . . . . . . . . . . . . . Exploded . | . . . . . . . . . . . . . . Melee . | . . . . . . . . . . . . . . Uniques/NPCs Destroyed . | . . . . . . . . . . . . . . Combat | -11 -10 -9 -8 -7 -6 -5 -5 -5 -5 -4 -4 -4 -3 -------- Run | Yrd Mat Mat Mat Fac Fac Fac Upp Upp Zhi Pro Fac DSF Res Hostile Shots Fired 501 | . 20 39 20 82 82 . 20 11 . 34 2 15 176 Missed 238 | . 4 16 9 38 42 . 6 7 . 18 1 7 90 Damage Taken 4449 | . 134 205 170 482 608 . 285 52 . 255 25 414 1819 Core 2578 | . 134 205 14 94 317 . 163 23 . 97 25 202 1304 Absorbed by Shields 31 | . . . . . . . . . . . . . 31 Redirected to Shielding 169 | . . . . . . . . . . 94 . 75 . Ignored by Resistances 28 | . . . . . . . . . . . . . 28 Core Remaining (%) 73 | 100 46 48 97 86 62 . . . . 66 . 80 . Volleys Fired . | . . . . . . . . . . . . . . Largest . | . . . . . . . . . . . . . . Hottest . | . . . . . . . . . . . . . . Shots Fired . | . . . . . . . . . . . . . . Gun . | . . . . . . . . . . . . . . Cannon . | . . . . . . . . . . . . . . Launcher . | . . . . . . . . . . . . . . Special . | . . . . . . . . . . . . . . Kinetic . | . . . . . . . . . . . . . . Thermal . | . . . . . . . . . . . . . . Explosive . | . . . . . . . . . . . . . . Electromagnetic . | . . . . . . . . . . . . . . Robot Hit Streak . | . . . . . . . . . . . . . . Robot Miss Streak . | . . . . . . . . . . . . . . Penetration Max . | . . . . . . . . . . . . . . Secondary Targets . | . . . . . . . . . . . . . . Shots Hit Robots . | . . . . . . . . . . . . . . Core Hits 3 | . . 1 . . 2 . . . . . . . . Critical Kills . | . . . . . . . . . . . . . . Critical Parts Destroyed . | . . . . . . . . . . . . . . Critical Strikes . | . . . . . . . . . . . . . . Melee Attacks . | . . . . . . . . . . . . . . Impact . | . . . . . . . . . . . . . . Slashing . | . . . . . . . . . . . . . . Piercing . | . . . . . . . . . . . . . . Sneak Attacks . | . . . . . . . . . . . . . . Combat Hostiles . | . . . . . . . . . . . . . . Follow-up Attacks . | . . . . . . . . . . . . . . Damage Inflicted 74 | . 25 1 . 6 42 . . . . . . . . Guns . | . . . . . . . . . . . . . . Cannons . | . . . . . . . . . . . . . . Explosions . | . . . . . . . . . . . . . . Melee . | . . . . . . . . . . . . . . Ramming 74 | . 25 1 . 6 42 . . . . . . . . Kinetic . | . . . . . . . . . . . . . . Thermal . | . . . . . . . . . . . . . . Explosive . | . . . . . . . . . . . . . . Electromagnetic . | . . . . . . . . . . . . . . Impact . | . . . . . . . . . . . . . . Slashing . | . . . . . . . . . . . . . . Piercing . | . . . . . . . . . . . . . . Highest Corruption 12 | . 1 . . 1 5 . . . . . . 4 12 Average Corruption 4 | . 1 . . 1 5 . . . . . . 4 6 Corruption Purged . | . . . . . . . . . . . . . . Corruption Blocked . | . . . . . . . . . . . . . . Effects 8 | . . . . 1 1 . . . . . . 1 5 Message Errors 4 | . . . . . 1 . . . . . . 1 2 Matter Fused 3 | . . . . 1 . . . . . . . . 2 Data Loss (minor) 1 | . . . . . . . . . . . . . 1 Overload Shots . | . . . . . . . . . . . . . . Overflow Damage . | . . . . . . . . . . . . . . Projectiles . | . . . . . . . . . . . . . . Explosions . | . . . . . . . . . . . . . . Melee . | . . . . . . . . . . . . . . Knockbacks . | . . . . . . . . . . . . . . Impact . | . . . . . . . . . . . . . . Kinetic . | . . . . . . . . . . . . . . Secondary . | . . . . . . . . . . . . . . Self-Inflicted Damage 32 | . 11 . . 3 18 . . . . . . . . Shots . | . . . . . . . . . . . . . . Rammed 17 | . 5 1 . 1 9 . . . . . . . 1 Targets Rammed 17 | . 5 1 . 1 9 . . . . . . . 1 Kicked . | . . . . . . . . . . . . . . Crushed . | . . . . . . . . . . . . . . Highest Temperature 239 | . . . . . . . . . . . . . 239 Average Temperature 109 | . . . . . . . . . . . . . 109 Received Heat Transfer 628 | . . 54 90 159 129 . 36 . . . 9 . 151 Siege Activations . | . . . . . . . . . . . . . . Robots Corrupted . | . . . . . . . . . . . . . . Combat Hostiles . | . . . . . . . . . . . . . . Parts Fried . | . . . . . . . . . . . . . . Impact Corruptions . | . . . . . . . . . . . . . . Robots Melted . | . . . . . . . . . . . . . . Combat Hostiles . | . . . . . . . . . . . . . . Parts Melted . | . . . . . . . . . . . . . . Heat Transferred . | . . . . . . . . . . . . . . Parts Sabotaged . | . . . . . . . . . . . . . . Parts Stolen . | . . . . . . . . . . . . . . Parts Stripped . | . . . . . . . . . . . . . . Power Chain Reactions . | . . . . . . . . . . . . . . Alert | -11 -10 -9 -8 -7 -6 -5 -5 -5 -5 -4 -4 -4 -3 ------- Run | Yrd Mat Mat Mat Fac Fac Fac Upp Upp Zhi Pro Fac DSF Res Peak Influence 365 | . 30 175 104 183 157 66 . . . . 33 23 365 Initial 89 | . . 12 73 46 89 66 . . . . 2 23 . Average 123 | . 11 96 86 90 123 66 . . . . 16 13 214 Maximum Alert Level 1 | . . . . . . . . . . . . . 1 Low Security (%) 83 | 100 100 100 100 100 100 100 . . . . 100 100 46 Level 1 16 | . . . . . . . . . . . . . 53 Level 2 . | . . . . . . . . . . . . . . Level 3 . | . . . . . . . . . . . . . . Level 4 . | . . . . . . . . . . . . . . Level 5 . | . . . . . . . . . . . . . . High Security . | . . . . . . . . . . . . . . Max Security . | . . . . . . . . . . . . . . Squads Dispatched 19 | . . 1 1 2 4 1 . . . . . 1 9 Investigation 14 | . . 1 1 1 3 1 . . . . . . 7 Extermination 2 | . . . . 1 . . . . . . . . 1 Reinforcement 3 | . . . . . 1 . . . . . . 1 1 Assault . | . . . . . . . . . . . . . . Garrison . | . . . . . . . . . . . . . . Intercept . | . . . . . . . . . . . . . . Searches Triggered . | . . . . . . . . . . . . . . Construction Impeded . | . . . . . . . . . . . . . . Haulers Reinforced . | . . . . . . . . . . . . . . Active Scanning Responses . | . . . . . . . . . . . . . . Cargo Convoy Interrupts . | . . . . . . . . . . . . . . Stealth | -11 -10 -9 -8 -7 -6 -5 -5 -5 -5 -4 -4 -4 -3 --------- Run | Yrd Mat Mat Mat Fac Fac Fac Upp Upp Zhi Pro Fac DSF Res Distress Signals 3 | . . . 1 . . . . . . . . . 2 Communications Jammed . | . . . . . . . . . . . . . . Distress Signals . | . . . . . . . . . . . . . . Times Spotted 106 | . 8 9 6 10 13 . 13 1 . 7 1 3 35 Peak Tracking Total 13 | . 8 9 5 4 9 . 13 1 . 5 1 3 13 Tactical Retreats 21 | . . 1 . 4 2 . 6 . . 1 . . 7 Traps | -11 -10 -9 -8 -7 -6 -5 -5 -5 -5 -4 -4 -4 -3 ------- Run | Yrd Mat Mat Mat Fac Fac Fac Upp Upp Zhi Pro Fac DSF Res Traps Triggered 11 | . 1 . . 2 . . . . . . . 1 7 Indirectly . | . . . . . . . . . . . . . . Trap Hack Attempts . | . . . . . . . . . . . . . . Triggered . | . . . . . . . . . . . . . . Disarmed . | . . . . . . . . . . . . . . Reprogrammed . | . . . . . . . . . . . . . . Reused . | . . . . . . . . . . . . . . Traps Extracted . | . . . . . . . . . . . . . . Installed . | . . . . . . . . . . . . . . Triggered . | . . . . . . . . . . . . . . Machines | -11 -10 -9 -8 -7 -6 -5 -5 -5 -5 -4 -4 -4 -3 ---------- Run | Yrd Mat Mat Mat Fac Fac Fac Upp Upp Zhi Pro Fac DSF Res Machines Disabled . | . . . . . . . . . . . . . . Max in Single Turn . | . . . . . . . . . . . . . . Machines Repaired . | . . . . . . . . . . . . . . Machines Dismantled . | . . . . . . . . . . . . . . Machines Sabotaged . | . . . . . . . . . . . . . . Overloaded Fab Kills . | . . . . . . . . . . . . . . Hacking | -11 -10 -9 -8 -7 -6 -5 -5 -5 -5 -4 -4 -4 -3 --------- Run | Yrd Mat Mat Mat Fac Fac Fac Upp Upp Zhi Pro Fac DSF Res Machines Accessed 33 | . 2 3 2 3 5 1 . . 7 . 3 . 7 Terminals 24 | . 2 3 2 2 5 1 . . . . 2 . 7 Fabricators 1 | . . . . 1 . . . . . . . . . Repair Stations . | . . . . . . . . . . . . . . Recycling Units . | . . . . . . . . . . . . . . Scanalyzers 1 | . . . . . . . . . . . 1 . . Garrison Access . | . . . . . . . . . . . . . . Total Hacks 95 | . 4 12 5 9 13 2 . . 24 . 5 . 21 Successful 43 | . 2 6 2 2 4 1 . . 24 . 2 . . Failed 52 | . 2 6 3 7 9 1 . . . . 3 . 21 Catastrophic 14 | . 1 1 1 . 1 1 . . . . . . 9 Database Lockouts . | . . . . . . . . . . . . . . Manual 53 | . 4 12 5 5 7 2 . . 1 . 3 . 14 Terminals 68 | . 4 12 5 7 13 2 . . . . 4 . 21 Fabricators 2 | . . . . 2 . . . . . . . . . Repair Stations . | . . . . . . . . . . . . . . Recycling Units . | . . . . . . . . . . . . . . Scanalyzers 1 | . . . . . . . . . . . 1 . . Garrison Access . | . . . . . . . . . . . . . . Terminal Hacks 34 | . 2 3 . 2 2 . . . 24 . 1 . . Record 12 | . . . . . . . . . 12 . . . . Part Schematic 5 | . . . . . 1 . . . 4 . . . . Robot Analysis 5 | . . 1 . . . . . . 4 . . . . Prototype ID Bank 4 | . . . . . . . . . 4 . . . . Open DSF 2 | . . . . 1 . . . . . . 1 . . Level Access Points 3 | . 1 1 . 1 . . . . . . . . . Terminal Index 3 | . 1 1 . . 1 . . . . . . . . Fabricator Hacks . | . . . . . . . . . . . . . . Repair Station Hacks . | . . . . . . . . . . . . . . Recycling Unit Hacks . | . . . . . . . . . . . . . . Scanalyzer . | . . . . . . . . . . . . . . Garrison Access Hacks . | . . . . . . . . . . . . . . Unauthorized Hacks 8 | . . 2 2 . 2 1 . . . . 1 . . Terminals 8 | . . 2 2 . 2 1 . . . . 1 . . Assimilate 1 | . . . 1 . . . . . . . . . . Botnet 5 | . . 1 1 . 2 1 . . . . . . . Operators 2 | . . 1 . . . . . . . . 1 . . Fabricators . | . . . . . . . . . . . . . . Repair Stations . | . . . . . . . . . . . . . . Recycling Units . | . . . . . . . . . . . . . . Scanalyzers . | . . . . . . . . . . . . . . Garrison Access . | . . . . . . . . . . . . . . Data Cores Recovered . | . . . . . . . . . . . . . . Used . | . . . . . . . . . . . . . . Hacking Detections 23 | . 2 3 2 2 5 1 . . . . 1 . 7 Full Trace Events 14 | . . 1 1 1 3 1 . . . . . . 7 Feedback Events . | . . . . . . . . . . . . . . Feedback Blocked . | . . . . . . . . . . . . . . Robot Schematics Acquired . | . . . . . . . . . . . . . . Robots Built . | . . . . . . . . . . . . . . Authchips . | . . . . . . . . . . . . . . Time . | . . . . . . . . . . . . . . Total Robot Build Rating . | . . . . . . . . . . . . . . Part Schematics Acquired 5 | . . . . . 1 . . . 4 . . . . Parts Built . | . . . . . . . . . . . . . . Authchips . | . . . . . . . . . . . . . . Time . | . . . . . . . . . . . . . . Total Part Build Rating . | . . . . . . . . . . . . . . Parts Repaired . | . . . . . . . . . . . . . . Time . | . . . . . . . . . . . . . . Parts Recycled . | . . . . . . . . . . . . . . Recycled Matter . | . . . . . . . . . . . . . . Retrieved Matter . | . . . . . . . . . . . . . . Retrieved Components . | . . . . . . . . . . . . . . Parts Scanalyzed . | . . . . . . . . . . . . . . Part Schematics Acquired . | . . . . . . . . . . . . . . Parts Damaged . | . . . . . . . . . . . . . . Bothacking | -11 -10 -9 -8 -7 -6 -5 -5 -5 -5 -4 -4 -4 -3 ------------ Run | Yrd Mat Mat Mat Fac Fac Fac Upp Upp Zhi Pro Fac DSF Res Used RIF Installer . | . . . . . . . . . . . . . . Robots Hacked . | . . . . . . . . . . . . . . Non-combat . | . . . . . . . . . . . . . . Combat . | . . . . . . . . . . . . . . Robot Hacks Applied . | . . . . . . . . . . . . . . Relay Couplers Released . | . . . . . . . . . . . . . . Fabnet Peak Effective % . | . . . . . . . . . . . . . . Robots Rewired . | . . . . . . . . . . . . . . Allies Hacked . | . . . . . . . . . . . . . . Hacks Repelled . | . . . . . . . . . . . . . . Allies | -11 -10 -9 -8 -7 -6 -5 -5 -5 -5 -4 -4 -4 -3 -------- Run | Yrd Mat Mat Mat Fac Fac Fac Upp Upp Zhi Pro Fac DSF Res Total Allies 1 | . . . 1 . . . . . . . . . . Largest Group 1 | . . . 1 1 . . . . . . . . . Highest-Rated Group 26 | . . . 26 23 . . . . . . . . . Highest-Rated Ally 26 | . . . 26 23 . . . . . . . . . Total Orders . | . . . . . . . . . . . . . . Ally Attacks . | . . . . . . . . . . . . . . Total Damage . | . . . . . . . . . . . . . . Kills . | . . . . . . . . . . . . . . Allies Corrupted . | . . . . . . . . . . . . . . Allies Melted . | . . . . . . . . . . . . . . Intel | -11 -10 -9 -8 -7 -6 -5 -5 -5 -5 -4 -4 -4 -3 ------- Run | Yrd Mat Mat Mat Fac Fac Fac Upp Upp Zhi Pro Fac DSF Res Robot Analysis Total 5 | . . 1 . . . . . . 4 . . . . Derelict Logs Recovered 5 | . . . . . . . 3 1 . 1 . . . Drone Launches . | . . . . . . . . . . . . . . Drone Recoveries . | . . . . . . . . . . . . . . Exploration | -11 -10 -9 -8 -7 -6 -5 -5 -5 -5 -4 -4 -4 -3 ------------- Run | Yrd Mat Mat Mat Fac Fac Fac Upp Upp Zhi Pro Fac DSF Res Turns Passed 1530 | 10 44 89 80 294 150 33 192 76 56 102 32 34 338 Spaces Moved 3885 | 20 78 172 141 563 277 83 635 254 160 332 96 97 977 Core 1336 | 20 78 172 141 561 277 . . . . . . . 87 Treads 2 | . . . . 2 . . . . . . . . . Legs . | . . . . . . . . . . . . . . Wheels . | . . . . . . . . . . . . . . Hover . | . . . . . . . . . . . . . . Flight 2547 | . . . . . . 83 635 254 160 332 96 97 890 Fastest Speed 26 | 50 50 50 50 50 50 30 30 30 30 30 30 28 26 Average Speed 36 | 50 50 50 50 50 50 31 30 30 30 30 30 28 30 Slowest Speed 160 | 50 50 50 50 160 50 35 30 30 30 30 30 30 50 Overloaded Moves . | . . . . . . . . . . . . . . Propulsion Burnouts . | . . . . . . . . . . . . . . Robots Hopped 17 | . . . . . . . 2 . . . 1 1 13 Cave-ins Triggered . | . . . . . . . . . . . . . . Teleports 1 | . . . . . . . . . . 1 . . . Exploration Rate (%) 33 | 3 22 26 19 18 8 3 71 53 62 57 4 88 34 Regions Visited 13 Branch Regions 4 Pre-discovered Areas 6 | . . . . . . . 2 . 3 1 . . . Known Exits Taken 4 | . 1 1 . 1 . . . . . . 1 . . Unknown Exits Taken 8 | 1 . . 1 . 1 1 1 1 1 1 . . . Scrap Searched 2 | . . . . . . . 1 1 . . . . . Spaces Dug . | . . . . . . . . . . . . . . Terrain Destroyed . | . . . . . . . . . . . . . . Melee . | . . . . . . . . . . . . . . Projectile . | . . . . . . . . . . . . . . AOE . | . . . . . . . . . . . . . . Terrain Rammed . | . . . . . . . . . . . . . . Walls Destroyed . | . . . . . . . . . . . . . . Machines Disabled . | . . . . . . . . . . . . . . Actions | -11 -10 -9 -8 -7 -6 -5 -5 -5 -5 -4 -4 -4 -3 --------- Run | Yrd Mat Mat Mat Fac Fac Fac Upp Upp Zhi Pro Fac DSF Res Total 3947 | 19 82 173 146 570 287 87 633 253 165 333 97 101 1001 Wait 1 | . . . . . . . . . . . . . 1 Move 3842 | 19 77 171 140 563 276 82 631 253 159 331 94 94 952 Hop 15 | . . . . . . . 1 . . . 1 1 12 Pick Up 15 | . . . . 1 1 . . . 2 1 . 2 8 Fast Attach 36 | . . 1 6 5 1 3 1 . 3 . 2 2 12 Attach 5 | . . . . . . 2 . . . 1 . . 2 Detach . | . . . . . . . . . . . . . . Swap 2 | . . . . 1 . . . . 1 . . . . Drop 7 | . . . . . . . . . . . . 2 5 Fire . | . . . . . . . . . . . . . . Melee . | . . . . . . . . . . . . . . Ram 16 | . 5 1 . . 9 . . . . . . . 1 Kick . | . . . . . . . . . . . . . . Crush . | . . . . . . . . . . . . . . Escape Stasis 8 | . . . . . . . . . . . . . 8 Rewire . | . . . . . . . . . . . . . . Trap . | . . . . . . . . . . . . . . Miscellaneous . | . . . . . . . . . . . . . . Route ------- -11/Scrapyard -10/Materials (discovered 3 exits: *Mat x3) -9/Materials (discovered 4 exits: *Mat x3 / [*Min]) -8/Materials -7/Factory (discovered 4 exits: *Fac x4) -6/Factory (discovered 2 exits: *Fac x2) -5/Factory -5/Upper Caves -5/Upper Caves -5/Zhirov -4/Proximity Caves -4/Factory (discovered 2 exits: *Res / DSF) -4/DSF -3/Research History --------- Turn | Location | Event 3 | -11/Scrapyard | Discovered new exit (range 15) 11 | -11/Scrapyard | Entered Materials 24 | -10/Materials | Identified exit to Materials 55 | -10/Materials | Core integrity fell below 50% 55 | -10/Materials | Entered another Materials area 55 | -9/Materials | Evolved 2 slots: Utility x2 80 | -9/Materials | Identified exit to Materials 120 | -9/Materials | Discovered new exit (range 9) 142 | -9/Materials | Core integrity fell below 50% 144 | -9/Materials | Entered another Materials area 144 | -8/Materials | Evolved 2 slots: Propulsion x2 206 | -8/Materials | Discovered new exit (range 8) 224 | -8/Materials | Entered Factory 224 | -7/Factory | Accompanied by 1 ally 224 | -7/Factory | Evolved 2 slots: Utility x2 437 | -7/Factory | Identified exit to Factory 518 | -7/Factory | Entered another Factory area 518 | -6/Factory | Evolved 2 slots: Utility x2 610 | -6/Factory | Discovered new exit (range 13) 661 | -6/Factory | Discovered new exit (range 13) 668 | -6/Factory | Entered another Factory area 668 | -5/Factory | Evolved 2 slots: Utility x2 680 | -5/Factory | Lost 5 parts (3n2u) 695 | -5/Factory | Discovered new exit (range 7) 701 | -5/Factory | Entered Upper Caves 715 | -5/Upper Caves | Learned Factory emergency access door positions 825 | -5/Upper Caves | Attracted the attention of an 0b10 outpost 878 | -5/Upper Caves | Learned location of Armory (-4) 890 | -5/Upper Caves | Discovered new exit (range 12) 893 | -5/Upper Caves | Entered another Upper Caves area 921 | -5/Upper Caves | Learned Factory terminal intel 946 | -5/Upper Caves | Spotted B-75 Beast 961 | -5/Upper Caves | Build established: Sprinter 966 | -5/Upper Caves | Discovered new exit (range 12) 969 | -5/Upper Caves | Entered Zhirov 969 | -5/Zhirov | Discovered new exit (range 3) 975 | -5/Zhirov | Met Zhirov 980 | -5/Zhirov | Learned location of Quarantine (-2) 980 | -5/Zhirov | Learned location of Testing (-3) 980 | -5/Zhirov | Learned location of Command (-1) 987 | -5/Zhirov | Zhirov requested help retrieving the SGEMP Prototype 992 | -5/Zhirov | Found Alien Artifact 992 | -5/Zhirov | Identified Integrated Reactor 992 | -5/Zhirov | Installed Integrated Reactor, increased core energy generation (+10) 998 | -5/Zhirov | Found Alien Artifact 1025 | -5/Zhirov | Entered Proximity Caves 1054 | -4/Proximity Caves | Acquired the password to a Derelict Tinkerer's latest research 1054 | -4/Proximity Caves | Identified Transdimensional Reconstructor 1054 | -4/Proximity Caves | Warped through subspace 1066 | -4/Proximity Caves | Spotted B-86 Titan 1123 | -4/Proximity Caves | Discovered new exit (range 15) 1127 | -4/Proximity Caves | Entered Factory 1127 | -4/Factory | Evolved 2 slots: Propulsion x2 1129 | -4/Factory | Loaded intel: 25 terminal locations 1156 | -4/Factory | Discovered new exit (range 3) 1159 | -4/Factory | Identified exit to DSF 1159 | -4/Factory | Entered DSF 1180 | -4/DSF | Additional patrols routed to DSF 1190 | -4/DSF | Discovered new exit (range 14) 1193 | -4/DSF | Entered Research 1193 | -3/Research | Evolved 2 slots: Power x1, Utility x1 1211 | -3/Research | Lost 4 parts (1p3u) 1240 | -3/Research | Found Prototype Device 1240 | -3/Research | Identified Exp. Focal Shield 1265 | -3/Research | Spotted B-86 Titan 1414 | -3/Research | Found Prototype Processor 1501 | -3/Research | System corruption reached 10% 1515 | -3/Research | Core integrity fell below 50% 1517 | -3/Research | Lost 5 parts (1p3n1u) 1521 | -3/Research | Spotted B-86 Titan 1524 | -3/Research | Core integrity fell below 20% 1531 | -3/Research | Destroyed by C-35 Carver with Carbide Saw Last Messages --------------- 01477_ Slug penetrates Door. 01477_ Slug penetrates C-35 Carver. 01479_ System corrupted: Component data lost. 01479_ Q-thruster severed. 01479_ R-10 Processor collects Q-thruster. 01483_ Lance severed. 01486_ Imp. Cesium-ion Thruster destroyed. 01494_ Adv. Terrain Scan Processor severed. 01497_ System Shield severed. 01500_ Slammed into R-10 Processor. 01500_ Destabilizing: System corrupted (+2). 01502_ K-01 Serf cleans the Subatomic Condenser. 01516_ Broken Imp. Signal Interpreter severed. 01522_ VU&UJ>YSCB W53QP>:|ZPUZ6XMUN1RR9B 01523_ Connecting with Terminal... 01523_ ALERT: Suspicious activity at Terminal R001. Dispatching Investigation squad. 01527_ ALERT: Security rotation in progress. 01528_ Terminal disabled. 01529_ K-01 Serf collects debris. Map ----- +----------------------------------------------------+ | ?????????????????????????????????????????????????? | | ?????????????????????????????????????????????????? | | ?????????????????????????????????????????????????? | | ?????????????????????????????????????????????????? | | ?????????????????????????????????????????????????? | | ?????????????????????????????????????????????????? | | ?????????????????????????????????????????????????? | | ?????????????????????????????????????????????????? | | ?????????????????????????????????????????????????? | | ?????????????????????????????????????????????????? | | ?????????????????????????????????????????????????? | | ?????????????????????????????????????????????????? | | ?????????????????????????????????????????????????? | | ?????????????????????????????????????????????????? | | ?????????????????????????????????????????????????? | | ?????????????????????????????????????????????????? | | ?????????????????????????????????????????????????? | | ?????????????????????????????????????????????????? | | ?????????????????????#########???????????????????? | | ?????????????????????? #???????????????????? | | ?????????????????????? #????####???????????? | | ??????????????????????? #??? #???????????? | | ???????????????????????? #??? #???????????? | | ??????????????????#####?# #?? #???????????? | | ???????????????"""S""" ?# #?? #???????????? | | ??????????# """ """ #@ #? #???????????? | | ??????????# #c #? #???????????? | | ??????????# * + c # [ #???????????? | | ??????????# # # #???????????? | | ??????????# # + #???????????? | | ??????????# ?# # #???????????? | | ??????????#############?# # #???????????? | | ???????????############## #?###########+??????? | | ??????????? #?# ???????? | | ?????????? #?# ????????? | | ??????????# g #?# ??????????? | | ??????????# ]]] #?# ???????????? | | ??????????# ]]! gg T#?# #????????????? | | ??????????????""" ]]! g"#?# #????????????? | | ??????????????""" k ### #????????????? | | ??????????????""" t #????????????? | | ???????????? #????????????? | | ??????????# #????????????? | | ??????????? #????????????? | | ???????????### ########## #????????????? | | ?????????????#??????????# #????????????? | | ????????????????????????# #????????????? | | ????????????????????????# """#????????????? | | ????????????????????????# Y"#????????????? | | ????????????????????????# """#??#######???? | +----------------------------------------------------+ Best States ------------- Heat Dissipation 46 Energy Generation 38 Energy Capacity 295 Matter Stores 204 Matter Capacity 300 Sight Range 16 Robot Scan Range 14 Terrain Scan Range 14 Terrain Scan Density 310 ECM Strength 1 Jamming Range 16 Cloak Strength 2 Resistance: KI 30 Propulsion Shielding 90 Phase Shifting 10 Evasion (%) 86 Recoil Reduction 1 Offensive Hacking 10 Defensive Hacking 14 Item Schematics ----------------- Hacking Suite | -6/Factory | Hacked Assault Drone Bay | -5/Zhirov | Free Exp. Heat Sink | -5/Zhirov | Free Exp. Optical Array | -5/Zhirov | Free Imp. Arc Thrower | -5/Zhirov | Free Robot Schematics ------------------ None Fabricated ------------ Nothing Alien Tech Used ----------------- Integrated Reactor Transdimensional Reconstructor Achievements -------------- None Challenges ------------ None Game ------ Seed ImpactCannonScythe Manual? 0 Play Time 00:56:23 Cumulative 171.8 hours Start 2024.04.08 @ 19:53:06 End 2024.04.08 @ 20:54:25 Sessions 1 Manual Loads 0 Difficulty Rogue Special Mode None Game No. 152 Rogue 147 Adventurer 0 Explorer 5 Win Type - Total 5 Types 2/0/1/2/0/0/0/0/0 Lore% 52 Gallery% 62 Achievement% 48 Wizard Run 0 Options --------- Layout 0 ASCII 0 Keyboard 0 Movement Numpad Keybinds 0 Fullscreen 2 Font 36/Terminus Map View 83x50 Zoom Use 0% Tactical HUD 1 Map Filters NONE Filters NONE Steam 1 RUN: 01bd7391-c755-4d53-a80c-1dfcf3dd5e62